Workbook

Sheet Rail Service (Item Nos. 1-6)
A1: EP 724 (Sub-No. 5) - U.S. Rail Service Issues - Performance Data Reporting
D2: OMB Control No. 2140-0033 | E2: Expiration Date: 12/31/2025
A3: Railroad: | B3: Year: 2025 | C3: Reporting Week: | D3: Date Week Began: | E3: 2025-11-29
D4: Date Week Ended: | E4: 2025-12-05
A5: 1. Average Train Speed by Train Type and Overall System Average Train Speed reported in Miles per Hour (MPH)
A6: Intermodal | B6: 35.0
A7: Grain unit | B7: 25.1
A8: Coal unit | B8: 22.5
A9: Automotive unit | B9: 26.4
A10: Crude oil unit | B10: 24.5
A11: Ethanol unit | B11: 24.1
A12: Manifest | B12: 24.4
A13: System | B13: 26.6
A15: 2. Weekly Average Terminal Dwell Time Excluding Cars on Run-Through Trains Measured in Hours for 10 Largest Terminals and Overall System in Terms of Railcars Processed
A16: Terminal | B16: Terminal Dwell Time
A17: Barstow, CA | B17: 24.5
A18: Denver, CO | B18: 24.9
A19: Fort Worth, TX | B19: 25.7
A20: Galesburg, IL | B20: 26.9
A21: Kansas City, KS | B21: 26.8
A22: Lincoln, NE | B22: 29.1
A23: Memphis, TN | B23: 17.3
A24: Northtown, MN | B24: 30.1
A25: Pasco, WA | B25: 20.8
A26: Tulsa, OK | B26: 19.6
A27: System | B27: 21.6
A29: 3. Weekly Average Cars On Line by Car Type
A30: Box | B30: 9,980
A31: Covered hopper | B31: 77,493
A32: Gondola | B32: 9,642
A33: Intermodal | B33: 19,062
A34: Multilevel (automotive) | B34: 11,410
A35: Open hopper | B35: 42,234
A36: Tank | B36: 60,367
A37: Other | B37: 10,003
A38: Total | B38: 240,193
A40: 4. Weekly Average Dwell Time at Origin for Unit Train Shipments Measured in Hours
A41: Grain unit | B41: 17.3
A42: Coal unit | B42: 5.9
A43: Automotive unit | B43: 30.3
A44: Crude Oil unit | B44: 9.5
A45: Ethanol unit | B45: 30.4
A46: All Other Unit Trains | B46: 3.1
A48: 5. Weekly Average Number of Trains Holding Per Day by Train Type and Cause
A49: Train Type | B49: Cause | E49: Total
B50: Crew | C50: Locomotive power | D50: Other
A51: Intermodal | B51: .0 | C51: 1.0 | D51: .1 | E51: =+B51+C51+D51 -> 1.1
A52: Grain unit | B52: .7 | C52: .0 | D52: 1.1 | E52: =+B52+C52+D52 -> 1.8
A53: Coal unit | B53: .6 | C53: .0 | D53: .7 | E53: 1.3
A54: Automotive unit | B54: .0 | C54: .0 | D54: .3 | E54: .3
A55: Crude oil unit | B55: .0 | C55: .0 | D55: .1 | E55: =+B55+C55+D55 -> .1
A56: Ethanol unit | B56: .0 | C56: .0 | D56: .0 | E56: .0
A57: Other unit | B57: .1 | C57: .0 | D57: .3 | E57: .4
A58: Manifest | B58: .4 | C58: .7 | D58: .6 | E58: 1.7
A59: Total | B59: =SUM(B51:B58) -> 1.8 | C59: =SUM(C51:C58) -> 1.7 | D59: 3.2 | E59: =+B59+C59+D59 -> 6.7
A61: 6. Weekly Average Number of Loaded and Empty Cars in Revenue Service That Have Not Moved 48 Hours Or Greater
B62: Loaded | C62: Empty
A63: Intermodal | B63: 176.1 | C63: 326.1
A64: Grain | B64: 511.6 | C64: 250.9
A65: Coal | B65: 60.9 | C65: 256.1
A66: Crude Oil | B66: 1.3 | C66: 28.0
A67: Automotive | B67: 216.6 | C67: 134.9
A68: Ethanol | B68: 182.1 | C68: 155.0
A69: Fertilizer | B69: 80.6 | C69: 186.3
A70: Chemical or Allied Products (all STCC 28 commodities not otherwise reported under Ethanol or Fertilizer) | B70: 175.4 | C70: 230.7
A71: All Other | B71: 1,998.3 | C71: 2,536.3

Sheet Grain Loadings (Item No. 7)
A1: EP 724 (Sub-No. 5) - U.S. Rail Service Issues - Performance Data Reporting
D2: OMB Control No. 2140-0033 | E2: Expiration Date: 12/31/2025
A3: ='Rail Service (Item Nos. 1-6)'!A3 -> Railroad: | B3: ='Rail Service (Item Nos. 1-6)'!B3:B4 -> Year: 2025 | C3: ='Rail Service (Item Nos. 1-6)'!C3 -> Reporting Week: | D3: Date Week Began: | E3: ='Rail Service (Item Nos. 1-6)'!E3 -> 2025-11-29
D4: Date Week Ended: | E4: ='Rail Service (Item Nos. 1-6)'!E4 -> 2025-12-05
A6: 7. Weekly total grain cars loaded and billed, reported by State, aggregated for the following Standard Transportation Commodity Codes (STCCs): 01131 (barley), 01132 (corn), 01133 (oats), 01135 (rye), 01136 (sorghum grains), 01137 (wheat), 01139 (grain, not elsewhere classified), 01144 (soybeans), 01341 (beans, dry), 01342 (peas, dry), and 01343 (cowpeas, lentils, or lupines). “Total grain cars loaded and billed” includes cars in shuttle service; dedicated train service; reservation, lottery, open and other ordering systems; and, private cars. Additionally, please separately report the total cars loaded and billed in shuttle service (or dedicated train service) versus total cars loaded and billed in all other ordering systems, including private cars. Instruction: Please enter "0" if no data is being reported for a field.
A8: State | B8: Total Grain Cars Loaded and Billed For All Ordering Systems | C8: Total Grain Cars Loaded and Billed For Shuttle / Dedicated Train Service Ordering Systems | D8: Total Grain Cars Loaded and Billed For Ordering Systems Other Than Shuttle / Dedicated Train Service
A9: AL | B9: 0 | C9: 0 | D9: 0
A10: AR | B10: 0 | C10: 0 | D10: 0
A11: AZ | B11: 1 | C11: 0 | D11: 1
A12: CA | B12: 1 | C12: 0 | D12: 1
A13: CO | B13: 57 | C13: 0 | D13: 57
A14: CT | B14: 0 | C14: 0 | D14: 0
A15: DE | B15: 0 | C15: 0 | D15: 0
A16: FL | B16: 0 | C16: 0 | D16: 0
A17: GA | B17: 0 | C17: 0 | D17: 0
A18: IA | B18: 973 | C18: 336 | D18: 637
A19: ID | B19: 10 | C19: 0 | D19: 10
A20: IL | B20: 507 | C20: 0 | D20: 507
A21: IN | B21: 5 | C21: 0 | D21: 5
A22: KS | B22: 1,135 | C22: 461 | D22: 674
A23: KY | B23: 0 | C23: 0 | D23: 0
A24: LA | B24: 0 | C24: 0 | D24: 0
A25: MA | B25: 0 | C25: 0 | D25: 0
A26: MD | B26: 0 | C26: 0 | D26: 0
A27: ME | B27: 0 | C27: 0 | D27: 0
A28: MI | B28: 0 | C28: 0 | D28: 0
A29: MN | B29: 1,573 | C29: 1,383 | D29: 190
A30: MO | B30: 114 | C30: 0 | D30: 114
A31: MS | B31: 0 | C31: 0 | D31: 0
A32: MT | B32: 903 | C32: 680 | D32: 223
A33: NC | B33: 0 | C33: 0 | D33: 0
A34: ND | B34: 2,530 | C34: 1,828 | D34: 702
A35: NE | B35: 1,912 | C35: 1,132 | D35: 780
A36: NH | B36: 0 | C36: 0 | D36: 0
A37: NJ | B37: 0 | C37: 0 | D37: 0
A38: NM | B38: 0 | C38: 0 | D38: 0
A39: NV | B39: 0 | C39: 0 | D39: 0
A40: NY | B40: 0 | C40: 0 | D40: 0
A41: OH | B41: 0 | C41: 0 | D41: 0
A42: OK | B42: 0 | C42: 0 | D42: 0
A43: OR | B43: 8 | C43: 0 | D43: 8
A44: PA | B44: 0 | C44: 0 | D44: 0
A45: RI | B45: 0 | C45: 0 | D45: 0
A46: SC | B46: 0 | C46: 0 | D46: 0
A47: SD | B47: 3,332 | C47: 3,309 | D47: 23
A48: TN | B48: 0 | C48: 0 | D48: 0
A49: TX | B49: 140 | C49: 113 | D49: 27
A50: UT | B50: 0 | C50: 0 | D50: 0
A51: VA | B51: 0 | C51: 0 | D51: 0
A52: VT | B52: 0 | C52: 0 | D52: 0
A53: WA | B53: 381 | C53: 347 | D53: 34
A54: WI | B54: 127 | C54: 0 | D54: 127
A55: WV | B55: 0 | C55: 0 | D55: 0
A56: WY | B56: 26 | C56: 0 | D56: 26
A57: Total | B57: =SUM(B9:B56) -> 13,735 | C57: =SUM(C9:C56) -> 9,589 | D57: =SUM(D9:D56) -> 4,146

Sheet Grain Car Order (Item No. 8)
A1: EP 724 (Sub-No. 5) - U.S. Rail Service Issues - Performance Data Reporting
D2: OMB Control No. 2140-0033 | E2: Expiration Date: 12/31/2025
A3: ='Rail Service (Item Nos. 1-6)'!A3 -> Railroad: | B3: ='Rail Service (Item Nos. 1-6)'!B3:B4 -> Year: 2025 | C3: ='Rail Service (Item Nos. 1-6)'!C3 -> Reporting Week: | D3: Date Week Began: | E3: ='Rail Service (Item Nos. 1-6)'!E3 -> 2025-11-29
D4: Date Week Ended: | E4: ='Rail Service (Item Nos. 1-6)'!E4 -> 2025-12-05
A6: 8. For the aggregated STCCs in Request No. 7, report by State the following: (a) the running total number of orders placed; (b) the running total of orders filled; and (c) for orders which have not been filled, the number of orders that are 1-10 days past due and 11+ days past due.
A8: State | B8: a. Running Total Number of Orders Placed | C8: b. Running Total of Orders Filled | D8: c. Unfilled Orders
D9: Number of Orders That Are 1-10 Days Past Due | E9: Number of Orders That Are 11+ Days Past Due
A10: AL
A11: AR
A12: AZ | C12: 1
A13: CA | C13: 2 | E13: 1
A14: CO | B14: 11 | C14: 44 | D14: 27
A15: CT
A16: DE
A17: FL
A18: GA
A19: IA | C19: 19 | D19: 9
A20: ID
A21: IL | C21: 11 | D21: 8 | E21: 1
A22: IN
A23: KS | B23: 45 | C23: 248 | D23: 89 | E23: 2
A24: KY
A25: LA
A26: MA
A27: MD
A28: ME
A29: MI
A30: MN | B30: 140 | C30: 163 | D30: 76 | E30: 1
A31: MO | B31: 1 | C31: 3 | D31: 10 | E31: 2
A32: MS | C32: 1
A33: MT | B33: 45 | C33: 339 | D33: 77 | E33: 21
A34: NC
A35: ND | B35: 172 | C35: 334 | D35: 337 | E35: 70
A36: NE | B36: 13 | C36: 51 | D36: 94 | E36: 17
A37: NH
A38: NJ
A39: NM
A40: NV
A41: NY
A42: OH
A43: OK | D43: 110
A44: OR | B44: 2
A45: PA
A46: RI
A47: SC
A48: SD | B48: 110 | C48: 9 | D48: 26
A49: TN
A50: TX | C50: 23 | D50: 30 | E50: 6
A51: UT
A52: VA
A53: VT
A54: WA | B54: 3 | C54: 32 | D54: 27
A55: WI
A56: WV
A57: WY | C57: 20
A58: TOTAL | B58: =SUM(B10:B57) -> 542 | C58: =SUM(C10:C57) -> 1,300 | D58: =SUM(D10:D57) -> 920 | E58: =SUM(E10:E57) -> 121

Sheet Coal & Grain Plans (Items 9-10)
A1: EP 724 (Sub-No. 5) - U.S. Rail Service Issues - Performance Data Reporting
D2: OMB Control No. 2140-0033 | E2: Expiration Date: 12/31/2025
A3: ='Rail Service (Item Nos. 1-6)'!A3 -> Railroad: | B3: ='Rail Service (Item Nos. 1-6)'!B3:B4 -> Year: 2025 | C3: ='Rail Service (Item Nos. 1-6)'!C3 -> Reporting Week: | D3: Date Week Began: | E3: ='Rail Service (Item Nos. 1-6)'!E3 -> 2025-11-29
D4: Date Week Ended: | E4: ='Rail Service (Item Nos. 1-6)'!E4 -> 2025-12-05
A7: 9. Weekly Average Coal Unit Train Loadings or Carloadings versus Planned Loadings by Coal Production Region
A8: Region | B8: Loadings Plan | C8: Loadings Average
A9: Powder River Basin | B9: 28.0 | C9: 25.0
A10: Other | B10: 2.0 | C10: 1.0
A16: If "Loadings Plan" data is not being reported, please insert "NR" in the appropriate column and briefly explain the reason in the space provided below:
A19: 10. Average Grain Shuttle Turns per Month By Region And System versus Planned Turns Per Month (Applicable to Class I Carriers Operating a Grain Shuttle Program)
A20: Region (Please Specify Destination Region) | B20: Average Turns | C20: Planned Turns
A22: System | B22: 2.7 | C22: 2.6
A23: CA | B23: 2.4 | C23: 2.4
A24: Gulf | B24: 2.6 | C24: 2.7
A25: Mexico | B25: 1.2 | C25: 1.5
A26: PNW | B26: 2.7 | C26: 2.7
A27: West TX | B27: 3.9 | C27: 3.5

Sheet Carloadings (Item 11)
A1: EP 724 (Sub-No. 5) - U.S. Rail Service Issues - Performance Data Reporting
D2: OMB Control No. 2140-0033 | E2: Expiration Date: 12/31/2025
A3: ='Rail Service (Item Nos. 1-6)'!A3 -> Railroad: | B3: ='Rail Service (Item Nos. 1-6)'!B3:B4 -> Year: 2025 | C3: ='Rail Service (Item Nos. 1-6)'!C3 -> Reporting Week: | D3: Date Week Began: | E3: ='Rail Service (Item Nos. 1-6)'!E3 -> 2025-11-29
D4: Date Week Ended: | E4: ='Rail Service (Item Nos. 1-6)'!E4 -> 2025-12-05
A6: 11. i. Weekly Originated and Received Carloads by 22 Commodity Categories
A8: Railroad | B8: Commodity Group | C8: Commodity Group Code | D8: Originated | E8: Received
B9: Chemicals | C9: A | D9: 6,147 | E9: 1,959
B10: Coal | C10: B | D10: 24,441 | E10: 245
B11: Coke | C11: C | D11: 509 | E11: 99
B12: Crushed Stone, Sand and Gravel | C12: D | D12: 3,354 | E12: 114
B13: Farm Products except Grain | C13: E | D13: 544 | E13: 16
B14: Food and Kindred Products | C14: F | D14: 2,681 | E14: 559
B15: Grain Mill Products | C15: G | D15: 3,484 | E15: 858
B16: Grain | C16: H | D16: 13,179 | E16: 71
B17: Iron and Steel Scrap | C17: I | D17: 885 | E17: 84
B18: Lumber and Wood Products | C18: J | D18: 754 | E18: 435
B19: Metallic Ores | C19: K | D19: 2,046 | E19: 2
B20: Metals | C20: L | D20: 1,066 | E20: 755
B21: Motor Vehicles and Equipment | C21: M | D21: 2,481 | E21: 2,754
B22: Non Metallic Minerals | C22: N | D22: 444 | E22: 15
B23: Petroleum Products | C23: O | D23: 5,715 | E23: 1,404
B24: Primary Forest Products | C24: P | D24: 25 | E24: 17
B25: Pulp, Paper and Allied Products | C25: Q | D25: 527 | E25: 733
B26: Stone, Clay and Glass Products | C26: R | D26: 2,031 | E26: 365
B27: Waste and Scrap Materials | C27: S | D27: 313 | E27: 152
B28: All Other | C28: T | D28: 1,364 | E28: 639
B29: Containers | C29: U | D29: 96,196 | E29: 5,317
B30: Trailers | C30: V | D30: 4,751 | E30: 181
A32: 11. ii. Weekly Originated and Received Carloads of Fertilizer (STCC Codes: 2871236, 2871235, 2871238, 2819454, 2812534, 2818426, 2819815, 2818170, 2871315, 2818142, 2818146, 2871244, 2819173, and 2871451)
A34: Railroad | B34: Commodity Group | C34: Commodity Group Code | D34: Originated | E34: Received
B35: Fertilizer | C35: A | D35: 703 | E35: 441
